fUST/lending_fUST_20241220
["ID","MTS","AMOUNT","RATE_DAILY","PERIOD"]
[346074742,1734693061376,-703.2810353,0.00022219,2]
[346074743,1734693061386,-156.44854133,0.00022219,2]
[346074744,1734693061395,-231.0,0.0002224,7]
[346074745,1734693061405,-151.0,0.00022243,5]
[346074746,1734693061419,-151.0,0.00022364,7]
[346074747,1734693061429,-151.0,0.00022364,7]
[346074748,1734693061442,-151.0,0.00022364,7]
[346074749,1734693061452,-666.0,0.00022364,2]
[346074750,1734693061462,-153.0,0.00022378,2]
[346074751,1734693061471,-153.0,0.00022378,2]
[346074752,1734693061481,-153.0,0.00022378,2]
[346074753,1734693061492,-151.0,0.00022399,6]
[346074754,1734693061501,-2000.0,0.000224,2]
[346074755,1734693061510,-151.0,0.00022464,7]
[346074756,1734693061520,-151.766501,0.00022464,7]
[346074757,1734693061530,-208.099156,0.00022464,7]
[346074758,1734693061539,-208.099156,0.00022464,7]
[346074759,1734693061548,-744.530375,0.00022464,7]
[346074760,1734693061557,-151.0,0.00022464,7]
[346074761,1734693061568,-151.0,0.00022464,7]
[346074762,1734693061577,-413.026202,0.00022464,7]
[346074763,1734693061587,-413.026202,0.00022464,7]
[346074764,1734693061596,-500.0,0.00022465,6]
[346074765,1734693061606,-506.36392333,0.00022465,6]
[346074766,1734693061615,-502.20311332,0.00022465,6]
[346074767,1734693061624,-510.65478279,0.00022465,6]
[346074768,1734693061754,-500.0,0.00022465,6]
[346074769,1734693061764,-500.0,0.00022465,6]
[346074770,1734693061773,-500.0,0.00022465,6]
[346074771,1734693061782,-500.0,0.00022465,6]
[346074772,1734693061792,-639.07651026,0.00022465,6]
[346074773,1734693061802,-606.66878907,0.00022465,6]
[346074774,1734693061812,-154.06319,0.00022465,7]
[346074775,1734693061821,-500.0,0.00022465,6]
[346074776,1734693061831,-501.73319004,0.00022465,6]
[346074777,1734693061840,-500.0,0.00022465,6]
[346074778,1734693061850,-500.0,0.00022465,6]
[346074779,1734693061859,-500.0,0.00022465,6]
[346074780,1734693061869,-602.42,0.00022465,6]
[346074781,1734693061878,-500.0,0.00022465,6]
[346074782,1734693061888,-500.0,0.00022465,6]
[346074783,1734693061898,-500.0,0.00022465,6]
[346074784,1734693061908,-503.86022018,0.00022465,6]
[346074785,1734693061918,-503.39023077,0.00022465,6]
[346074786,1734693061927,-500.0,0.00022465,6]
[346074787,1734693061937,-1144.54,0.00022465,6]
[346074788,1734693061947,-1262.667456,0.00022465,7]
[346074789,1734693061956,-500.0,0.00022465,6]
[346074790,1734693061966,-500.0,0.00022465,6]
[346074791,1734693061975,-500.0,0.00022465,6]
[346074792,1734693061985,-502.23,0.00022465,6]
[346074793,1734693061994,-500.0,0.00022465,6]
[346074794,1734693062003,-500.0,0.00022465,6]
[346074795,1734693062013,-500.0,0.00022465,6]
[346074796,1734693062022,-500.0,0.00022465,6]
[346074797,1734693062032,-501.41823696,0.00022465,6]
[346074798,1734693062042,-500.0,0.00022465,6]
[346074799,1734693062051,-500.0,0.00022465,6]
[346074800,1734693062060,-500.0,0.00022465,6]
[346074801,1734693062070,-500.0,0.00022465,6]
[346074802,1734693062079,-504.17,0.00022465,6]
[346074803,1734693062089,-504.77204303,0.00022465,6]
[346074804,1734693062098,-500.0,0.00022465,6]
[346074805,1734693062108,-500.0,0.00022465,6]
[346074806,1734693062117,-517.44880329,0.00022465,6]
[346074807,1734693062127,-504.85326957,0.00022465,6]
[346074808,1734693062136,-506.05857491,0.00022465,6]
[346074809,1734693062147,-649.76,0.00022465,6]
[346074810,1734693062157,-660.53,0.00022465,6]
[346074811,1734693062166,-500.0,0.00022465,6]
[346074812,1734693062177,-1017.84,0.00022465,6]
[346074813,1734693062188,-365.239564,0.00022465,7]
[346074814,1734693062197,-500.0,0.00022465,6]
[346074815,1734693062207,-500.0,0.00022465,6]
[346074816,1734693062216,-884.09,0.00022465,6]
[346074817,1734693062226,-365.239564,0.00022465,7]
[346074818,1734693062235,-500.0,0.00022465,6]
[346074819,1734693062245,-500.0,0.00022465,6]
[346074820,1734693062255,-500.0,0.00022465,6]
[346074821,1734693062265,-500.0,0.00022465,6]
[346074822,1734693062275,-339.519478,0.00022465,7]
[346074823,1734693062284,-339.519478,0.00022465,7]
[346074824,1734693062294,-500.0,0.00022465,6]
[346074825,1734693062303,-500.0,0.00022465,6]
[346074826,1734693062313,-500.0,0.00022465,6]
[346074827,1734693062323,-520.88907302,0.00022465,6]
[346074828,1734693062332,-540.87864619,0.00022465,6]
[346074829,1734693062342,-505.44473847,0.00022465,6]
[346074830,1734693062351,-500.0,0.00022465,6]
[346074831,1734693062361,-500.0,0.00022465,6]
[346074832,1734693062371,-500.0,0.00022465,6]
[346074833,1734693062381,-500.0,0.00022465,6]
[346074834,1734693062390,-800.6,0.00022465,6]
[346074835,1734693062400,-634.34,0.00022465,6]
[346074836,1734693062411,-500.0,0.00022465,6]
[346074837,1734693062422,-957.36,0.00022465,6]
[346074838,1734693062433,-500.0,0.00022465,6]
[346074839,1734693062443,-500.0,0.00022465,6]
[346074840,1734693062453,-504.8271373,0.00022465,6]
[346074841,1734693062462,-500.0,0.00022465,6]
[346074842,1734693062475,-500.0,0.00022465,6]
[346074843,1734693062489,-500.0,0.00022465,6]
[346074844,1734693062498,-500.0,0.00022465,6]
[346074845,1734693062508,-1728.45,0.00022465,6]
[346074846,1734693062518,-500.0,0.00022465,6]
[346074847,1734693062528,-500.0,0.00022465,6]
[346074848,1734693062537,-427.23514538,0.00022465,6]
[346074849,1734693062547,-437.27524,0.00022465,7]
[346074850,1734693062557,-437.27524,0.00022465,7]
[346074851,1734693062566,-500.0,0.00022465,6]
[346074852,1734693062577,-437.27524,0.00022465,7]
[346074853,1734693062586,-437.27524,0.00022465,7]
[346074854,1734693062609,-500.0,0.00022465,6]
[346074855,1734693062625,-500.0,0.00022465,6]
[346074856,1734693062643,-500.0,0.00022465,6]
[346074857,1734693062662,-500.0,0.00022465,6]
[346074858,1734693062677,-501.97114389,0.00022465,6]
[346074859,1734693062699,-723.0,0.00022465,6]
[346074860,1734693062718,-1023.35,0.00022465,6]
[346074861,1734693062736,-565.08,0.00022465,6]
[346074862,1734693062754,-500.0,0.00022465,6]
[346074863,1734693062772,-504.281355,0.00022465,6]
[346074864,1734693062791,-500.0,0.00022465,6]
[346074865,1734693062805,-500.0,0.00022465,6]
[346074866,1734693062825,-4532.594349,0.00022465,7]
[346074867,1734693062839,-4532.594349,0.00022465,7]
[346074868,1734693062857,-500.0,0.00022465,6]
[346074869,1734693062873,-500.0,0.00022465,6]
[346074870,1734693062888,-518.30576632,0.00022465,6]
[346074871,1734693062903,-505.30477567,0.00022465,6]
[346074872,1734693062918,-500.0,0.00022465,6]
[346074873,1734693062935,-500.0,0.00022465,6]
[346074874,1734693062949,-1199.17,0.00022465,6]
[346074875,1734693062964,-500.0,0.00022465,6]
[346074876,1734693062979,-157.763299,0.00022465,7]
[346074877,1734693062994,-500.0,0.00022465,6]
[346074878,1734693063009,-500.0,0.00022465,6]
[346074879,1734693063026,-500.0,0.00022465,6]
[346074880,1734693063042,-592.75,0.00022465,6]
[346074881,1734693063057,-500.0,0.00022465,6]
[346074882,1734693063072,-500.0,0.00022465,6]
[346074883,1734693063087,-500.0,0.00022465,6]
[346074884,1734693063102,-500.0,0.00022465,6]
[346074885,1734693063117,-765.62,0.00022465,6]
[346074886,1734693063132,-500.0,0.00022465,6]
[346074887,1734693063147,-521.86916701,0.00022465,6]
[346074888,1734693063162,-500.0,0.00022465,6]
[346074889,1734693063178,-500.0,0.00022465,6]
[346074890,1734693063197,-1006.14,0.00022465,6]
[346074891,1734693063212,-500.0,0.00022465,6]
[346074892,1734693063232,-535.09944174,0.00022465,6]
[346074893,1734693063248,-500.0,0.00022465,6]
[346074894,1734693063263,-887.36,0.00022465,6]
[346074895,1734693063279,-500.0,0.00022465,6]
[346074896,1734693063295,-519.78976045,0.00022465,6]
[346074897,1734693063311,-500.0,0.00022465,6]
[346074898,1734693063327,-1902.09,0.00022465,6]
[346074899,1734693063342,-500.0,0.00022465,6]
[346074900,1734693063358,-500.0,0.00022465,6]
[346074901,1734693063374,-1156.92,0.00022465,6]
[346074902,1734693063389,-500.0,0.00022465,6]
[346074903,1734693063404,-208.099156,0.00022465,7]
[346074904,1734693063425,-500.0,0.00022465,6]
[346074905,1734693063443,-208.099156,0.00022465,7]
[346074906,1734693063460,-502.0360665,0.00022465,6]
[346074907,1734693063476,-500.0,0.00022465,6]
[346074908,1734693063491,-507.92280002,0.00022465,6]
[346074909,1734693063506,-500.0,0.00022465,6]
[346074910,1734693063520,-500.0,0.00022465,6]
[346074911,1734693063535,-500.0,0.00022465,6]
[346074912,1734693063550,-506.21,0.00022465,6]
[346074913,1734693063566,-506.82535174,0.00022465,6]
[346074914,1734693063580,-538.01,0.00022465,6]
[346074915,1734693063595,-500.0,0.00022465,6]
[346074916,1734693063610,-500.89270295,0.00022465,6]
[346074917,1734693063625,-1161.97,0.00022465,6]
[346074918,1734693063640,-151.0,0.00022465,7]
[346074919,1734693063656,-500.0,0.00022465,6]
[346074920,1734693063670,-151.0,0.00022465,7]
[346074921,1734693063688,-500.0,0.00022465,6]
[346074922,1734693063703,-500.0,0.00022465,6]
[346074923,1734693063718,-279.304259,0.00022465,7]
[346074924,1734693063734,-500.0,0.00022465,6]
[346074925,1734693063750,-500.0,0.00022465,6]
[346074926,1734693063765,-500.0,0.00022465,6]
[346074927,1734693063781,-500.00000001,0.00022465,6]
[346074928,1734693063796,-902.08,0.00022465,6]
[346074929,1734693063811,-500.0,0.00022465,6]
[346074930,1734693063827,-500.0,0.00022465,6]
[346074931,1734693063841,-500.0,0.00022465,6]
[346074932,1734693063855,-1667.53,0.00022465,6]
[346074933,1734693063864,-500.0,0.00022465,6]
[346074934,1734693063874,-500.0,0.00022465,6]
[346074935,1734693063884,-744.530375,0.00022465,7]
[346074936,1734693063894,-580.22,0.00022465,6]
[346074937,1734693063904,-1293.82,0.00022465,6]
[346074938,1734693063914,-500.0,0.00022465,6]
[346074939,1734693063924,-500.0,0.00022465,6]
[346074940,1734693064165,-500.0,0.00022465,6]
[346074941,1734693064204,-182.37835234,0.00022465,6]
[346074942,1734693064215,-500.0,0.00022465,6]
[346074943,1734693064226,-1211.12,0.00022465,6]
[346074944,1734693064236,-500.0,0.00022465,6]
[346074945,1734693064246,-500.0,0.00022465,6]
[346074946,1734693064256,-500.0,0.00022465,6]
[346074947,1734693064266,-500.0,0.00022465,6]
[346074948,1734693064276,-510.23,0.00022465,6]
[346074949,1734693064286,-500.0,0.00022465,6]
[346074950,1734693064296,-988.28,0.00022465,6]
[346074951,1734693064306,-629.09232645,0.00022465,6]
[346074952,1734693064317,-500.0,0.00022465,6]
[346074953,1734693064327,-2509.21,0.00022465,6]
[346074954,1734693064337,-1456.58,0.00022465,6]
[346074955,1734693064347,-664.27,0.00022465,6]
[346074956,1734693064358,-170.80174056,0.00022465,6]
[346074957,1734693064369,-500.0,0.00022465,6]
[346074958,1734693064378,-1215.59,0.00022465,6]
[346074959,1734693064388,-1202.07,0.00022465,6]
[346074960,1734693064398,-500.0,0.00022465,6]
[346074961,1734693064408,-500.0,0.00022465,6]
[346074962,1734693064422,-500.0,0.00022465,6]
[346074963,1734693064431,-500.0,0.00022465,6]
[346074964,1734693064444,-500.0,0.00022465,6]
[346074965,1734693064455,-500.0,0.00022465,6]
[346074966,1734693064466,-500.0,0.00022465,6]
[346074967,1734693064477,-870.43,0.00022465,6]
[346074968,1734693064488,-500.0,0.00022465,6]
[346074969,1734693064498,-500.0,0.00022465,6]
[346074970,1734693064508,-500.0,0.00022465,6]
[346074971,1734693064517,-500.0,0.00022465,6]
[346074972,1734693064528,-500.0,0.00022465,6]
[346074973,1734693064539,-500.0,0.00022465,6]
[346074974,1734693064549,-500.0,0.00022465,6]
[346074975,1734693064559,-500.0,0.00022465,6]
[346074976,1734693064568,-500.0,0.00022465,6]
[346074977,1734693064578,-534.47,0.00022465,6]
[346074978,1734693064587,-500.0,0.00022465,6]
[346074979,1734693064597,-500.0,0.00022465,6]
[346074980,1734693064607,-500.0,0.00022465,6]
[346074981,1734693064616,-258.234953,0.00022465,7]
[346074982,1734693064625,-151.0,0.00022465,7]
[346074983,1734693064635,-500.0,0.00022465,6]
[346074984,1734693064644,-500.0,0.00022465,6]
[346074985,1734693064654,-500.0,0.00022465,6]
[346074986,1734693064663,-258.234953,0.00022465,7]
[346074987,1734693064673,-500.0,0.00022465,6]
[346074988,1734693064683,-663.44,0.00022465,6]
[346074989,1734693064698,-644.54,0.00022465,6]
[346074990,1734693064708,-500.0,0.00022465,6]
[346074991,1734693064717,-501.46079397,0.00022465,6]
[346074992,1734693064727,-500.0,0.00022465,6]
[346074993,1734693064737,-500.0,0.00022465,6]
[346074994,1734693064747,-500.0,0.00022465,6]
[346074995,1734693064757,-500.0,0.00022465,6]
[346074996,1734693064767,-500.0,0.00022465,6]
[346074997,1734693064777,-151.0,0.00022465,7]
[346074998,1734693064787,-500.0,0.00022465,6]
[346074999,1734693064797,-200.0,0.00022465,6]
[346075000,1734693064807,-500.0,0.00022465,6]
[346075001,1734693064817,-500.0,0.00022465,6]
[346075002,1734693064827,-500.0,0.00022465,6]
[346075003,1734693064837,-500.0,0.00022465,6]
[346075004,1734693064847,-501.8144278,0.00022465,6]
[346075005,1734693064856,-500.0,0.00022465,6]
[346075006,1734693064866,-500.0,0.00022465,6]
[346075007,1734693064876,-3028.67,0.00022465,6]
[346075008,1734693064885,-500.0,0.00022465,6]
[346075009,1734693064894,-500.0,0.00022465,6]
[346075010,1734693064904,-662.01,0.00022465,6]
[346075011,1734693064914,-500.0,0.00022465,6]
[346075012,1734693064923,-500.0,0.00022465,6]
[346075013,1734693064933,-500.0,0.00022465,6]
[346075014,1734693064947,-500.86638457,0.00022465,6]
[346075015,1734693064956,-500.0,0.00022465,6]
[346075016,1734693064966,-400.89,0.00022465,6]
[346075017,1734693064975,-500.0,0.00022465,6]
[346075018,1734693064984,-711.74,0.00022465,6]
[346075019,1734693064993,-500.0,0.00022465,6]
[346075020,1734693065002,-500.0,0.00022465,6]
[346075021,1734693065012,-554.08,0.00022465,6]
[346075022,1734693065022,-500.0,0.00022465,6]
[346075023,1734693065031,-645.88,0.00022465,6]
[346075024,1734693065041,-500.0,0.00022465,6]
[346075025,1734693065050,-502.90455721,0.00022465,6]
[346075026,1734693065060,-500.0,0.00022465,6]
[346075027,1734693065070,-577.97,0.00022465,6]
[346075028,1734693065079,-500.0,0.00022465,6]
[346075029,1734693065090,-500.0,0.00022465,6]
[346075030,1734693065100,-500.0,0.00022465,6]
[346075031,1734693065110,-500.0,0.00022465,6]
[346075032,1734693065119,-1637.88,0.00022465,6]
[346075033,1734693065128,-500.0,0.00022465,6]
[346075034,1734693065138,-500.0,0.00022465,6]
[346075035,1734693065147,-778.88,0.00022465,6]
[346075036,1734693065157,-500.0,0.00022465,6]
[346075037,1734693065166,-2108.73,0.00022465,6]
[346075038,1734693065176,-642.6,0.00022465,6]
[346075039,1734693065187,-500.0,0.00022465,6]
[346075040,1734693065197,-500.0,0.00022465,6]
[346075041,1734693065206,-993.42,0.00022465,6]
[346075042,1734693065216,-413.026202,0.00022465,7]
[346075043,1734693065226,-594.43822785,0.00022465,6]
[346075044,1734693065235,-501.58364294,0.00022465,6]
[346075045,1734693065245,-500.0,0.00022465,6]
[346075046,1734693065254,-500.0,0.00022465,6]
[346075047,1734693065264,-500.0,0.00022465,6]
[346075048,1734693065273,-500.0,0.00022465,6]
[346075049,1734693065282,-500.0,0.00022465,6]
[346075050,1734693065292,-500.0,0.00022465,6]
[346075051,1734693065301,-413.026202,0.00022465,7]
[346075052,1734693065310,-1347.62,0.00022465,6]
[346075053,1734693065319,-1576.34,0.00022465,6]
[346075054,1734693065328,-500.0,0.00022465,6]
[346075055,1734693065338,-500.0,0.00022465,6]
[346075056,1734693065347,-559.19,0.00022465,6]
[346075057,1734693065357,-504.23651009,0.00022465,6]
[346075058,1734693065366,-783.39,0.00022465,6]
[346075059,1734693065376,-500.0,0.00022465,6]
[346075060,1734693065385,-505.14401858,0.00022465,6]
[346075061,1734693065395,-500.0,0.00022465,6]
[346075062,1734693065404,-500.0,0.00022465,6]
[346075063,1734693065416,-500.0,0.00022465,6]
[346075064,1734693065425,-500.0,0.00022465,6]
[346075065,1734693065434,-816.89,0.00022465,6]
[346075066,1734693065445,-500.0,0.00022465,6]
[346075067,1734693065455,-1486.6,0.00022465,6]
[346075068,1734693065466,-683.88,0.00022465,6]
[346075069,1734693065475,-500.0,0.00022465,6]
[346075070,1734693065484,-500.0,0.00022465,6]
[346075071,1734693065495,-500.0,0.00022465,6]
[346075072,1734693065505,-500.0,0.00022465,6]
[346075073,1734693065515,-263.63979508,0.00022465,6]
[346075074,1734693065523,-503.11141169,0.00022465,6]
[346075075,1734693065533,-500.0,0.00022465,6]
[346075076,1734693065542,-3350.69,0.00022465,6]
[346075077,1734693065552,-500.0,0.00022465,6]
[346075078,1734693065561,-501.47736831,0.00022465,6]
[346075079,1734693065570,-599.87322867,0.00022465,6]
[346075080,1734693065579,-3984.39,0.00022465,6]
[346075081,1734693065589,-500.0,0.00022465,6]
[346075082,1734693065598,-500.0,0.00022465,6]
[346075083,1734693065607,-500.0,0.00022465,6]
[346075084,1734693065617,-500.0,0.00022465,6]
[346075085,1734693065626,-657.82,0.00022465,6]
[346075086,1734693065635,-500.0,0.00022465,6]
[346075087,1734693065644,-500.0,0.00022465,6]
[346075088,1734693065653,-908.77,0.00022465,6]
[346075089,1734693065662,-3922.68197,0.00022465,7]
[346075090,1734693065672,-500.0,0.00022465,6]
[346075091,1734693065682,-3922.68197,0.00022465,7]
[346075092,1734693065694,-500.0,0.00022465,6]
[346075093,1734693065703,-500.0,0.00022465,6]
[346075094,1734693065713,-628.05,0.00022465,6]
[346075095,1734693065722,-500.0,0.00022465,6]
[346075096,1734693065731,-500.0,0.00022465,6]
[346075097,1734693065741,-162.087698,0.00022465,7]
[346075098,1734693065750,-579.5,0.00022465,6]
[346075099,1734693065760,-3405.57585,0.00022465,7]
[346075100,1734693065769,-162.087698,0.00022465,7]
[346075101,1734693065779,-750.31,0.00022465,6]
[346075102,1734693065788,-519.61,0.00022465,6]
[346075103,1734693065798,-500.0,0.00022465,6]
[346075104,1734693065806,-2341.45,0.00022465,6]
[346075105,1734693065817,-3405.57585,0.00022465,7]
[346075106,1734693065826,-703.35,0.00022465,6]
[346075107,1734693065835,-500.0,0.00022465,6]
[346075108,1734693065845,-846.66,0.00022465,6]
[346075109,1734693065854,-500.0,0.00022465,6]
[346075110,1734693065864,-508.11677467,0.00022465,6]
[346075111,1734693065873,-558.24,0.00022465,6]
[346075112,1734693065882,-500.0,0.00022465,6]
[346075113,1734693065891,-784.95,0.00022465,6]
[346075114,1734693065900,-929.35,0.00022465,6]
[346075115,1734693065913,-500.0,0.00022465,6]
[346075116,1734693065925,-500.0,0.00022465,6]
[346075117,1734693065936,-500.0,0.00022465,6]
[346075118,1734693065946,-2078.12,0.00022465,6]
[346075119,1734693065956,-500.0,0.00022465,6]
[346075120,1734693065965,-500.0,0.00022465,6]
[346075121,1734693065976,-2253.32,0.00022465,6]
[346075122,1734693065985,-753.77,0.00022465,6]
[346075123,1734693065995,-1958.52,0.00022465,6]
[346075124,1734693066005,-928.58,0.00022465,6]
[346075125,1734693066014,-500.0,0.00022465,6]
[346075126,1734693066024,-490.63435111,0.00022465,6]
[346075127,1734693066034,-500.0,0.00022465,6]
[346075128,1734693066044,-2612.84,0.00022465,6]
[346075129,1734693066053,-283.033407,0.00022465,7]
[346075130,1734693066063,-816.69,0.00022465,6]
[346075131,1734693066072,-500.0,0.00022465,6]
[346075132,1734693066082,-510.53144152,0.00022465,6]
[346075133,1734693066091,-366.09715797,0.00022465,6]
[346075134,1734693066100,-283.033407,0.00022465,7]
[346075135,1734693066109,-514.61573467,0.00022465,6]
[346075136,1734693066119,-942.58,0.00022465,6]
[346075137,1734693066128,-998.57,0.00022465,6]
[346075138,1734693066137,-500.0,0.00022465,6]
[346075139,1734693066147,-500.0,0.00022465,6]
[346075140,1734693066157,-3375.68,0.00022465,6]
[346075141,1734693066167,-151.0,0.00022465,7]
[346075142,1734693066177,-591.11,0.00022465,6]
[346075143,1734693066187,-3019.62,0.00022465,6]
[346075144,1734693066198,-500.0,0.00022465,6]
[346075145,1734693066207,-829.78,0.00022465,6]
[346075146,1734693066216,-500.0,0.00022465,6]
[346075147,1734693066227,-2878.24,0.00022465,6]
[346075148,1734693066236,-500.0,0.00022465,6]
[346075149,1734693066246,-870.11,0.00022465,6]
[346075150,1734693066255,-292.192511,0.00022465,7]
[346075151,1734693066265,-500.0,0.00022465,6]
[346075152,1734693066274,-500.0,0.00022465,6]
[346075153,1734693066284,-500.0,0.00022465,6]
[346075154,1734693066293,-2093.85,0.00022465,6]
[346075155,1734693066303,-561.5,0.00022465,6]
[346075156,1734693066312,-1000.0,0.00022465,6]
[346075157,1734693066323,-500.0,0.00022465,6]
[346075158,1734693066332,-575.58,0.00022465,6]
[346075159,1734693066342,-500.0,0.00022465,6]
[346075160,1734693066351,-500.0,0.00022465,6]
[346075161,1734693066362,-500.0,0.00022465,6]
[346075162,1734693066372,-606.38,0.00022465,6]
[346075163,1734693066381,-501.34163965,0.00022465,6]
[346075164,1734693066391,-500.0,0.00022465,6]
[346075165,1734693066401,-500.0,0.00022465,6]
[346075166,1734693066412,-500.0,0.00022465,6]
[346075167,1734693066422,-1051.37,0.00022465,6]
[346075168,1734693066432,-500.0,0.00022465,6]
[346075169,1734693066447,-500.0,0.00022465,6]
[346075170,1734693066456,-605.01,0.00022465,6]
[346075171,1734693066465,-500.0,0.00022465,6]
[346075172,1734693066475,-1895.2,0.00022465,6]
[346075173,1734693066486,-1304.77,0.00022465,6]
[346075174,1734693066495,-978.44,0.00022465,6]
[346075175,1734693066505,-500.0,0.00022465,6]
[346075176,1734693066515,-500.0,0.00022465,6]
[346075177,1734693066525,-186.82888,0.00022465,7]
[346075178,1734693066535,-151.0,0.00022465,7]
[346075179,1734693066544,-509.65728513,0.00022465,6]
[346075180,1734693066553,-823.06,0.00022465,6]
[346075181,1734693066563,-1110.35,0.00022465,6]
[346075182,1734693066572,-15620.31,0.00022465,6]
[346075183,1734693066581,-186.82888,0.00022465,7]
[346075184,1734693066591,-3107.96,0.00022465,6]
[346075185,1734693066601,-189.753428,0.00022465,7]
[346075186,1734693066610,-637.20323055,0.00022465,6]
[346075187,1734693066619,-1979.3,0.00022465,6]
[346075188,1734693066629,-500.0,0.00022465,6]
[346075189,1734693066638,-189.753428,0.00022465,7]
[346075190,1734693066647,-500.0,0.00022465,2]
[346075191,1734693066657,-1698.36,0.00022465,6]
[346075192,1734693066667,-1217.27,0.00022465,6]
[346075193,1734693066677,-500.0,0.00022465,6]
[346075194,1734693066690,-1129.89,0.00022465,6]
[346075195,1734693066700,-500.0,0.00022465,6]
[346075196,1734693066710,-500.0,0.00022465,6]
[346075197,1734693066719,-504.09960172,0.00022465,6]
[346075198,1734693066729,-3084.04,0.00022465,6]
[346075199,1734693066739,-611.22,0.00022465,6]
[346075200,1734693066749,-500.0,0.00022465,6]
[346075201,1734693066758,-500.0,0.00022465,6]
[346075202,1734693066769,-500.0,0.00022465,6]
[346075203,1734693066778,-1273.08209,0.00022465,7]
[346075204,1734693066787,-1273.08209,0.00022465,7]
[346075205,1734693066797,-514.9,0.00022465,6]
[346075206,1734693066806,-1079.40644,0.00022465,7]
[346075207,1734693066815,-749.85,0.00022465,6]
[346075208,1734693066825,-1273.08209,0.00022465,7]
[346075209,1734693066835,-1273.08209,0.00022465,7]
[346075210,1734693066844,-1709.27,0.00022465,6]
[346075211,1734693066853,-1079.40644,0.00022465,7]
[346075212,1734693066863,-500.0,0.00022465,6]
[346075213,1734693066873,-631.5,0.00022465,6]
[346075214,1734693066883,-500.0,0.00022465,6]
[346075215,1734693066893,-3926.23,0.00022465,6]
[346075216,1734693066902,-681.759088,0.00022465,7]
[346075217,1734693066912,-500.0,0.00022465,6]
[346075218,1734693066922,-503.24701275,0.00022465,6]
[346075219,1734693066931,-8032.25,0.00022465,6]
[346075220,1734693066946,-681.759088,0.00022465,7]
[346075221,1734693066955,-500.0,0.00022465,6]
[346075222,1734693066964,-500.0,0.00022465,6]
[346075223,1734693066974,-957.95,0.00022465,6]
[346075224,1734693066983,-647.04,0.00022465,6]
[346075225,1734693066993,-163.59543073,0.00022465,6]
[346075226,1734693067002,-151.0,0.00022465,7]
[346075227,1734693067012,-151.0,0.00022465,7]
[346075228,1734693067022,-500.0,0.00022465,6]
[346075229,1734693067031,-151.0,0.00022465,7]
[346075230,1734693067040,-500.0,0.00022465,6]
[346075231,1734693067049,-502.29077646,0.00022465,6]
[346075232,1734693067059,-151.0,0.00022465,7]
[346075233,1734693067068,-880.3,0.00022465,6]
[346075234,1734693067077,-156.081672,0.00022465,7]
[346075235,1734693067087,-828.99,0.00022465,6]
[346075236,1734693067096,-500.0,0.00022465,6]
[346075237,1734693067105,-500.0,0.00022465,6]
[346075238,1734693067115,-500.0,0.00022465,6]
[346075239,1734693067124,-500.0,0.00022465,6]
[346075240,1734693067133,-1556.66,0.00022465,2]
[346075241,1734693067142,-500.0,0.00022465,6]